fUSD/lending_fUSD_20250421
["ID","MTS","AMOUNT","RATE_DAILY","PERIOD"]
[358573525,1745273471274,-500.0,0.00044383,7]
[358573526,1745273471284,-1668.15,0.00044383,7]
[358573527,1745273471293,-500.0,0.00044383,7]
[358573528,1745273471303,-1022.68,0.00044383,7]
[358573529,1745273471312,-500.0,0.00044383,7]
[358573530,1745273471323,-896.677004,0.00044383,14]
[358573531,1745273471332,-500.0,0.00044383,7]
[358573532,1745273471342,-500.0,0.00044383,7]
[358573533,1745273471351,-662.83,0.00044383,7]
[358573534,1745273471361,-500.0,0.00044383,7]
[358573535,1745273471371,-896.677004,0.00044383,14]
[358573536,1745273471383,-500.0,0.00044383,7]
[358573537,1745273471393,-500.0,0.00044383,7]
[358573538,1745273471403,-1574.74,0.00044383,7]
[358573539,1745273471412,-500.0,0.00044383,7]
[358573540,1745273471423,-1020.13,0.00044383,7]
[358573541,1745273471432,-500.0,0.00044383,7]
[358573542,1745273471442,-500.0,0.00044383,7]
[358573543,1745273471451,-574.9,0.00044383,7]
[358573544,1745273471461,-636.14363573,0.00044383,7]
[358573545,1745273471471,-553.98824571,0.00044383,7]
[358573546,1745273471481,-981.52,0.00044383,7]
[358573547,1745273471493,-956.86,0.00044383,7]
[358573548,1745273471502,-500.0,0.00044383,7]
[358573549,1745273471511,-673.68,0.00044383,7]
[358573550,1745273471522,-500.0,0.00044383,7]
[358573551,1745273471531,-1000.0,0.00044383,7]
[358573552,1745273471541,-500.0,0.00044383,7]
[358573553,1745273471550,-500.0,0.00044383,7]
[358573554,1745273471560,-1117.56,0.00044383,7]
[358573555,1745273471569,-500.0,0.00044383,7]
[358573556,1745273471579,-500.0,0.00044383,7]
[358573557,1745273471588,-500.0,0.00044383,7]
[358573558,1745273471598,-500.0,0.00044383,7]
[358573559,1745273471607,-1471.8,0.00044383,7]
[358573560,1745273471616,-500.0,0.00044383,7]
[358573561,1745273471626,-500.0,0.00044383,7]
[358573562,1745273471635,-1450.05,0.00044383,7]
[358573563,1745273471644,-1910.22,0.00044383,7]
[358573564,1745273471653,-500.0,0.00044383,7]
[358573565,1745273471662,-500.0,0.00044383,7]
[358573566,1745273471672,-500.0,0.00044383,7]
[358573567,1745273471681,-500.0,0.00044383,7]
[358573568,1745273471691,-997.29,0.00044383,7]
[358573569,1745273471700,-500.0,0.00044383,7]
[358573570,1745273471710,-500.0,0.00044383,7]
[358573571,1745273471720,-500.0,0.00044383,7]
[358573572,1745273471730,-500.0,0.00044383,7]
[358573573,1745273471741,-525.77,0.00044383,7]
[358573574,1745273471750,-500.0,0.00044383,7]
[358573575,1745273471906,-1056.06,0.00044383,7]
[358573576,1745273471915,-3115.83,0.00044383,7]
[358573577,1745273471925,-3275.5,0.00044383,7]
[358573578,1745273471934,-1074.12,0.00044383,7]
[358573579,1745273471943,-1721.58,0.00044383,7]
[358573580,1745273471952,-500.54605761,0.00044383,7]
[358573581,1745273471962,-529.79302844,0.00044383,7]
[358573582,1745273471971,-500.0,0.00044383,7]
[358573583,1745273471980,-500.0,0.00044383,7]
[358573584,1745273471991,-500.0,0.00044383,7]
[358573585,1745273472001,-500.0,0.00044383,7]
[358573586,1745273472014,-500.0,0.00044383,7]
[358573587,1745273472023,-500.0,0.00044383,7]
[358573588,1745273472033,-500.0,0.00044383,7]
[358573589,1745273472043,-500.0,0.00044383,7]
[358573590,1745273472052,-500.0,0.00044383,7]
[358573591,1745273472061,-1422.93,0.00044383,7]
[358573592,1745273472071,-500.0,0.00044383,7]
[358573593,1745273472080,-834.44,0.00044383,7]
[358573594,1745273472090,-500.0,0.00044383,7]
[358573595,1745273472099,-500.0,0.00044383,7]
[358573596,1745273472109,-500.0,0.00044383,7]
[358573597,1745273472119,-743.09,0.00044383,7]
[358573598,1745273472128,-500.0,0.00044383,7]
[358573599,1745273472138,-2831.35,0.00044383,7]
[358573600,1745273472148,-3209.48,0.00044383,7]
[358573601,1745273472158,-500.0,0.00044383,7]
[358573602,1745273472167,-500.0,0.00044383,7]
[358573603,1745273472177,-500.0,0.00044383,7]
[358573604,1745273472187,-671.48,0.00044383,7]
[358573605,1745273472196,-500.0,0.00044383,7]
[358573606,1745273472207,-500.0,0.00044383,7]
[358573607,1745273472216,-583.29,0.00044383,7]
[358573608,1745273472226,-198.27325011,0.00044383,7]
[358573609,1745273472235,-500.0,0.00044383,7]
[358573610,1745273472245,-500.0,0.00044383,7]
[358573611,1745273472254,-973.67,0.00044383,7]
[358573612,1745273472264,-500.0,0.00044383,7]
[358573613,1745273472274,-1070.05,0.00044383,7]
[358573614,1745273472284,-500.0,0.00044383,7]
[358573615,1745273472294,-1375.34,0.00044383,7]
[358573616,1745273472303,-500.0,0.00044383,7]
[358573617,1745273472313,-557.35541065,0.00044383,7]
[358573618,1745273472322,-500.0,0.00044383,7]
[358573619,1745273472333,-7001.07,0.00044383,7]
[358573620,1745273472342,-2437.85,0.00044383,7]
[358573621,1745273472352,-500.0,0.00044383,7]
[358573622,1745273472361,-500.0,0.00044383,7]
[358573623,1745273472371,-780.148884,0.00044383,14]
[358573624,1745273472381,-500.0,0.00044383,7]
[358573625,1745273472393,-1522.45,0.00044383,7]
[358573626,1745273472402,-2289.63,0.00044383,7]
[358573627,1745273472412,-500.0,0.00044383,7]
[358573628,1745273472422,-274.417181,0.00044383,14]
[358573629,1745273472432,-500.0,0.00044383,7]
[358573630,1745273472442,-780.148884,0.00044383,14]
[358573631,1745273472451,-829.97,0.00044383,7]
[358573632,1745273472461,-500.0,0.00044383,7]
[358573633,1745273472471,-500.0,0.00044383,7]
[358573634,1745273472480,-148396.62,0.00044383,7]
[358573635,1745273472490,-1573.28,0.00044383,7]
[358573636,1745273472500,-274.417181,0.00044383,14]
[358573637,1745273472509,-783.77,0.00044383,7]
[358573638,1745273472519,-579.6198087,0.00044383,7]
[358573639,1745273472528,-500.0,0.00044383,7]
[358573640,1745273472537,-2454.7,0.00044383,7]
[358573641,1745273472547,-500.0,0.00044383,7]
[358573642,1745273472557,-500.0,0.00044383,7]
[358573643,1745273472566,-500.0,0.00044383,7]
[358573644,1745273472575,-527.57,0.00044383,7]
[358573645,1745273472585,-612.25,0.00044383,7]
[358573646,1745273472594,-1343.12,0.00044383,7]
[358573647,1745273472604,-500.0,0.00044383,7]
[358573648,1745273472613,-2236.11,0.00044383,7]
[358573649,1745273472623,-500.0,0.00044383,7]
[358573650,1745273472632,-500.0,0.00044383,7]
[358573651,1745273472642,-500.0,0.00044383,7]
[358573652,1745273472651,-963.95,0.00044383,7]
[358573653,1745273472660,-997.67,0.00044383,7]
[358573654,1745273472670,-500.0,0.00044383,7]
[358573655,1745273472679,-1289.89,0.00044383,7]
[358573656,1745273472690,-655.96,0.00044383,7]
[358573657,1745273472699,-500.0,0.00044383,7]
[358573658,1745273472708,-500.0,0.00044383,7]
[358573659,1745273472717,-569.75,0.00044383,7]
[358573660,1745273472726,-678.03,0.00044383,7]
[358573661,1745273472736,-500.0,0.00044383,7]
[358573662,1745273472746,-1596.74,0.00044383,7]
[358573663,1745273472755,-3240.43,0.00044383,7]
[358573664,1745273472764,-500.0,0.00044383,7]
[358573665,1745273472774,-209.126942,0.00044383,14]
[358573666,1745273472783,-534.76144215,0.00044383,7]
[358573667,1745273472793,-518.73,0.00044383,7]
[358573668,1745273472803,-500.0,0.00044383,7]
[358573669,1745273472812,-891.42,0.00044383,7]
[358573670,1745273472822,-209.126942,0.00044383,14]
[358573671,1745273472831,-1959.65,0.00044383,7]
[358573672,1745273472841,-500.0,0.00044383,7]
[358573673,1745273472851,-511.37,0.00044383,7]
[358573674,1745273472861,-804.59,0.00044383,7]
[358573675,1745273472870,-2145.1,0.00044383,7]
[358573676,1745273472880,-500.0,0.00044383,7]
[358573677,1745273472889,-517.11623414,0.00044383,7]
[358573678,1745273472898,-500.0,0.00044383,7]
[358573679,1745273472907,-5109.84,0.00044383,7]
[358573680,1745273472917,-500.0,0.00044383,7]
[358573681,1745273472927,-500.0,0.00044383,7]
[358573682,1745273472936,-500.0,0.00044383,7]
[358573683,1745273472946,-561.55,0.00044383,7]
[358573684,1745273472955,-1484.19,0.00044383,7]
[358573685,1745273472965,-500.0,0.00044383,7]
[358573686,1745273472975,-500.0,0.00044383,7]
[358573687,1745273472984,-508.57295252,0.00044383,7]
[358573688,1745273472995,-1100.11,0.00044383,7]
[358573689,1745273473004,-859.56,0.00044383,7]
[358573690,1745273473014,-574.2,0.00044383,7]
[358573691,1745273473024,-500.0,0.00044383,7]
[358573692,1745273473034,-500.0,0.00044383,7]
[358573693,1745273473043,-500.0,0.00044383,7]
[358573694,1745273473052,-500.0,0.00044383,7]
[358573695,1745273473062,-2581.69,0.00044383,7]
[358573696,1745273473071,-500.0,0.00044383,7]
[358573697,1745273473082,-500.0,0.00044383,7]
[358573698,1745273473093,-1348.97,0.00044383,7]
[358573699,1745273473102,-596.37,0.00044383,7]
[358573700,1745273473112,-500.0,0.00044383,7]
[358573701,1745273473121,-2009.27,0.00044383,7]
[358573702,1745273473131,-889.4,0.00044383,7]
[358573703,1745273473142,-868.91,0.00044383,7]
[358573704,1745273473151,-948.97,0.00044383,7]
[358573705,1745273473160,-500.0,0.00044383,7]
[358573706,1745273473170,-500.0,0.00044383,7]
[358573707,1745273473180,-500.0,0.00044383,7]
[358573708,1745273473190,-500.0,0.00044383,7]
[358573709,1745273473199,-717.21,0.00044383,7]
[358573710,1745273473209,-500.0,0.00044383,7]
[358573711,1745273473218,-1570.7,0.00044383,7]
[358573712,1745273473228,-500.0,0.00044383,7]
[358573713,1745273473237,-151.0,0.00044383,14]
[358573714,1745273473247,-500.0,0.00044383,7]
[358573715,1745273473256,-500.0,0.00044383,7]
[358573716,1745273473266,-500.0,0.00044383,7]
[358573717,1745273473275,-1677.09,0.00044383,7]
[358573718,1745273473285,-1058.05,0.00044383,7]
[358573719,1745273473294,-500.0,0.00044383,7]
[358573720,1745273473303,-1248.18,0.00044383,7]
[358573721,1745273473313,-508.66,0.00044383,7]
[358573722,1745273473322,-500.0,0.00044383,7]
[358573723,1745273473332,-500.0,0.00044383,7]
[358573724,1745273473342,-500.0,0.00044383,7]
[358573725,1745273473352,-500.0,0.00044383,7]
[358573726,1745273473361,-616.38,0.00044383,7]
[358573727,1745273473371,-2278.19,0.00044383,7]
[358573728,1745273473383,-1336.46,0.00044383,7]
[358573729,1745273473393,-2099.91,0.00044383,7]
[358573730,1745273473402,-500.0,0.00044383,7]
[358573731,1745273473411,-500.0,0.00044383,7]
[358573732,1745273473421,-500.0,0.00044383,7]
[358573733,1745273473430,-500.0,0.00044383,7]
[358573734,1745273473440,-500.0,0.00044383,7]
[358573735,1745273473449,-1053.78,0.00044383,7]
[358573736,1745273473459,-2998.83,0.00044383,7]
[358573737,1745273473468,-831.47,0.00044383,7]
[358573738,1745273473477,-500.0,0.00044383,7]
[358573739,1745273473487,-1357.54,0.00044383,7]
[358573740,1745273473496,-500.0,0.00044383,7]
[358573741,1745273473506,-504.87962596,0.00044383,7]
[358573742,1745273473516,-743.94,0.00044383,7]
[358573743,1745273473526,-1579.09,0.00044383,7]
[358573744,1745273473536,-500.0,0.00044383,7]
[358573745,1745273473547,-2781.12,0.00044383,7]
[358573746,1745273473556,-1075.24,0.00044383,7]
[358573747,1745273473566,-500.0,0.00044383,7]
[358573748,1745273473576,-592.06,0.00044383,7]
[358573749,1745273473584,-500.0,0.00044383,7]
[358573750,1745273473593,-500.0,0.00044383,7]
[358573751,1745273473601,-575.54,0.00044383,7]
[358573752,1745273473608,-1561.76,0.00044383,7]
[358573753,1745273473617,-1637.73,0.00044383,7]
[358573754,1745273473626,-1456.28,0.00044383,7]
[358573755,1745273473635,-500.0,0.00044383,7]
[358573756,1745273473644,-2605.24,0.00044383,7]
[358573757,1745273473653,-853.74,0.00044383,7]
[358573758,1745273473663,-2212.34,0.00044383,7]
[358573759,1745273473671,-500.0,0.00044383,7]
[358573760,1745273473681,-2220.57,0.00044383,7]
[358573761,1745273473691,-598.39,0.00044383,7]
[358573762,1745273473700,-901.27,0.00044383,7]
[358573763,1745273473710,-578.81,0.00044383,7]
[358573764,1745273473719,-500.0,0.00044383,7]
[358573765,1745273473728,-570.66484048,0.00044383,7]
[358573766,1745273473737,-500.0,0.00044383,7]
[358573767,1745273473747,-500.0,0.00044383,7]
[358573768,1745273473756,-500.0,0.00044383,7]
[358573769,1745273473766,-1275.11,0.00044383,7]
[358573770,1745273473775,-500.0,0.00044383,7]
[358573771,1745273473785,-500.0,0.00044383,7]
[358573772,1745273473794,-500.0,0.00044383,7]
[358573773,1745273473804,-2355.08,0.00044383,7]
[358573774,1745273473813,-500.0,0.00044383,7]
[358573775,1745273473823,-1605.45,0.00044383,7]
[358573776,1745273473832,-2547.52,0.00044383,7]
[358573777,1745273473842,-500.0,0.00044383,7]
[358573778,1745273473851,-500.0,0.00044383,7]
[358573779,1745273473860,-500.0,0.00044383,7]
[358573780,1745273473869,-500.0,0.00044383,7]
[358573781,1745273473878,-500.0,0.00044383,7]
[358573782,1745273473887,-168.95579442,0.00044383,7]
[358573783,1745273473897,-459.55446664,0.00044383,7]
[358573784,1745273473906,-1104.86,0.00044383,7]
[358573785,1745273473916,-500.0,0.00044383,7]
[358573786,1745273473925,-2642.88,0.00044383,7]
[358573787,1745273473935,-737.39,0.00044383,7]
[358573788,1745273473944,-500.0,0.00044383,7]
[358573789,1745273473955,-1339.26,0.00044383,7]
[358573790,1745273473965,-1748.44,0.00044383,2]
[358573791,1745273473976,-500.0,0.00044383,7]
[358573792,1745273473986,-541.74440077,0.00044383,7]
[358573793,1745273473996,-662.24,0.00044383,7]
[358573794,1745273474006,-500.0,0.00044383,7]
[358573795,1745273474015,-500.0,0.00044383,7]
[358573796,1745273474025,-500.0,0.00044383,7]
[358573797,1745273474167,-1174.25,0.00044383,7]
[358573798,1745273474178,-798.15,0.00044383,7]
[358573799,1745273474188,-500.0,0.00044383,2]
[358573800,1745273474197,-500.0,0.00044383,7]
[358573801,1745273474206,-5495.09,0.00044383,7]
[358573802,1745273474216,-500.0,0.00044383,7]
[358573803,1745273474226,-500.0,0.00044383,7]
[358573804,1745273474235,-500.0,0.00044383,7]
[358573805,1745273474246,-707.27,0.00044383,7]
[358573806,1745273474256,-500.0,0.00044383,5]
[358573807,1745273474266,-500.0,0.00044383,7]
[358573808,1745273474275,-1480.63,0.00044383,7]
[358573809,1745273474285,-500.0,0.00044383,7]
[358573810,1745273474294,-1438.44,0.00044383,7]
[358573811,1745273474303,-166.66785936,0.0004439,120]
[358573812,1745273474313,-151.0,0.0004439,14]
[358573813,1745273474322,-151.0,0.0004439,14]
[358573814,1745273474331,-3600.0,0.000444,2]
[358573815,1745273474341,-40023.29430336,0.000444,4]
[358573816,1745273474351,-600.0,0.00044463,120]
[358573817,1745273474360,-154.05,0.0004447,30]
[358573818,1745273474369,-167.6636,0.00044488,30]
[358573819,1745273474379,-150.042206,0.00044498,120]
[358573820,1745273474393,-600.0,0.00044616,2]
[358573821,1745273474403,-167.6636,0.00044688,30]
[358573822,1745273474413,-600.0,0.00044737,120]
[358573823,1745273474422,-222.0,0.0004479,2]
[358573824,1745273474432,-211.0,0.0004479,2]
[358573825,1745273474442,-208.0,0.0004479,2]
[358573826,1745273474452,-200.0,0.00044835,120]
[358573827,1745273474461,-4993.35717,0.00044869,2]
[358573828,1745273474470,-882.826775,0.00044869,2]
[358573829,1745273474479,-62545.5892932,0.00044869,2]
[358573830,1745273474488,-5034.108109,0.00044869,2]
[358573831,1745273474497,-13106.8128953,0.00044869,2]
[358573832,1745273474506,-274.417181,0.00044869,14]
[358573833,1745273474515,-274.417181,0.00044869,14]
[358573834,1745273474525,-500.0,0.0004487,3]
[358573835,1745273474534,-167.6636,0.00044888,30]
[358573836,1745273474544,-2138.17313805,0.00044898,28]
[358573837,1745273474553,-151.0,0.00044898,14]
[358573838,1745273474562,-13013.39438139,0.000449,7]
[358573839,1745273474572,-1220.63192683,0.000449,120]
[358573840,1745273474582,-27003.4040704,0.000449,2]
[358573841,1745273474591,-854.6055902,0.000449,2]
[358573842,1745273474600,-10437.6192078,0.000449,2]
[358573843,1745273474609,-1855.3059464,0.000449,2]
[358573844,1745273474618,-331.876103,0.000449,27]
[358573845,1745273474627,-100000.0,0.00044931,2]
[358573846,1745273474636,-1656.741814,0.00044931,7]
[358573847,1745273474646,-500.406308,0.00044931,7]
[358573848,1745273474655,-157.564912,0.00044931,7]
[358573849,1745273474665,-157.56491,0.00044931,7]
[358573850,1745273474674,-157.564911,0.00044931,7]
[358573851,1745273474683,-151.0,0.00044931,14]
[358573852,1745273474692,-151.0,0.00044931,14]
[358573853,1745273474701,-151.0,0.00044931,14]
[358573854,1745273474711,-151.0,0.00044931,14]
[358573855,1745273474720,-151.0,0.00044931,14]
[358573856,1745273474729,-171.124852,0.00044931,14]
[358573857,1745273474738,-171.124852,0.00044931,14]
[358573858,1745273474748,-151.0,0.00044931,14]
[358573859,1745273474757,-151.0,0.00044931,14]
[358573860,1745273474766,-151.0,0.00044931,14]
[358573861,1745273474775,-151.0,0.00044931,14]
[358573862,1745273474783,-151.0,0.00044931,14]
[358573863,1745273474791,-151.0,0.00044931,14]
[358573864,1745273474800,-151.0,0.00044931,14]
[358573865,1745273474809,-307.450642,0.00044931,14]
[358573866,1745273474819,-307.450642,0.00044931,14]
[358573867,1745273474829,-151.0,0.00044931,14]
[358573868,1745273474839,-151.0,0.00044931,14]
[358573869,1745273474849,-186.232249,0.00044931,14]
[358573870,1745273474858,-186.232249,0.00044931,14]
[358573871,1745273474868,-151.0,0.00044931,14]
[358573872,1745273474877,-151.0,0.00044931,14]
[358573873,1745273474886,-151.0,0.00044931,14]
[358573874,1745273474896,-151.0,0.00044931,14]
[358573875,1745273474905,-151.0,0.00044931,14]
[358573876,1745273474915,-151.0,0.00044931,14]
[358573877,1745273474926,-151.0,0.00044931,14]
[358573878,1745273474936,-151.0,0.00044931,14]
[358573879,1745273474948,-345.12127,0.00044931,2]
[358573880,1745273474958,-345.12127,0.00044931,2]
[358573881,1745273474969,-472.835595,0.00044931,14]
[358573882,1745273474978,-472.835595,0.00044931,14]
[358573883,1745273474988,-151.0,0.00044931,14]
[358573884,1745273474998,-177.002311,0.00044931,14]
[358573885,1745273475008,-151.0,0.00044931,14]
[358573886,1745273475018,-151.0,0.00044931,14]
[358573887,1745273475027,-151.0,0.00044931,14]
[358573888,1745273475037,-151.0,0.00044931,14]
[358573889,1745273475047,-151.0,0.00044931,14]
[358573890,1745273475058,-287.93679,0.00044931,14]
[358573891,1745273475067,-287.93679,0.00044931,14]
[358573892,1745273475077,-1069.34175,0.00044931,14]
[358573893,1745273475086,-151.0,0.00044931,14]
[358573894,1745273475096,-1069.34175,0.00044931,14]
[358573895,1745273475107,-500.0,0.00044931,7]
[358573896,1745273475116,-477.4649871,0.00044931,7]
[358573897,1745273475126,-500.0,0.00044931,7]
[358573898,1745273475135,-500.0,0.00044931,7]
[358573899,1745273475145,-500.0,0.00044931,7]
[358573900,1745273475155,-500.0,0.00044931,7]
[358573901,1745273475164,-151.0,0.00044931,14]
[358573902,1745273475173,-500.0,0.00044931,7]
[358573903,1745273475182,-500.0,0.00044931,7]
[358573904,1745273475191,-500.0,0.00044931,7]
[358573905,1745273475200,-500.0,0.00044931,7]
[358573906,1745273475209,-500.0,0.00044931,7]
[358573907,1745273475219,-500.0,0.00044931,7]
[358573908,1745273475229,-500.0,0.00044931,7]
[358573909,1745273475239,-500.0,0.00044931,7]
[358573910,1745273475248,-500.0,0.00044931,7]
[358573911,1745273475258,-500.0,0.00044931,7]
[358573912,1745273475267,-500.0,0.00044931,7]
[358573913,1745273475277,-864.57,0.00044931,7]
[358573914,1745273475287,-500.0,0.00044931,7]
[358573915,1745273475296,-500.0,0.00044931,7]
[358573916,1745273475305,-500.0,0.00044931,7]
[358573917,1745273475314,-500.0,0.00044931,7]
[358573918,1745273475323,-500.0,0.00044931,7]
[358573919,1745273475333,-269.313941,0.00044931,14]
[358573920,1745273475342,-500.0,0.00044931,7]
[358573921,1745273475351,-500.0,0.00044931,7]
[358573922,1745273475359,-500.0,0.00044931,7]
[358573923,1745273475368,-269.313941,0.00044931,14]
[358573924,1745273475377,-500.0,0.00044931,7]
[358573925,1745273475393,-500.0,0.00044931,7]
[358573926,1745273475402,-500.0,0.00044931,7]
[358573927,1745273475411,-500.0,0.00044931,7]
[358573928,1745273475420,-500.0,0.00044931,7]
[358573929,1745273475430,-500.0,0.00044931,7]
[358573930,1745273475439,-500.0,0.00044931,7]
[358573931,1745273475448,-500.0,0.00044931,7]
[358573932,1745273475457,-674.89,0.00044931,7]
[358573933,1745273475466,-500.0,0.00044931,7]
[358573934,1745273475476,-285.61122719,0.00044931,7]
[358573935,1745273475485,-500.0,0.00044931,7]
[358573936,1745273475494,-500.0,0.00044931,7]
[358573937,1745273475503,-500.0,0.00044931,7]
[358573938,1745273475512,-500.0,0.00044931,7]
[358573939,1745273475523,-1669.69,0.00044931,7]
[358573940,1745273475534,-500.0,0.00044931,7]
[358573941,1745273475544,-500.0,0.00044931,7]
[358573942,1745273475555,-500.0,0.00044931,7]
[358573943,1745273475565,-500.0,0.00044931,7]
[358573944,1745273475575,-500.0,0.00044931,7]
[358573945,1745273475584,-500.0,0.00044931,7]
[358573946,1745273475594,-500.0,0.00044931,7]
[358573947,1745273475603,-500.0,0.00044931,7]
[358573948,1745273475613,-516.96126071,0.00044931,7]
[358573949,1745273475623,-791.37,0.00044931,7]
[358573950,1745273475632,-500.0,0.00044931,7]
[358573951,1745273475641,-349.458953,0.00044931,7]
[358573952,1745273475651,-567.5341849,0.00044931,7]
[358573953,1745273475661,-500.0,0.00044931,7]
[358573954,1745273475670,-500.0,0.00044931,7]
[358573955,1745273475679,-500.0,0.00044931,7]
[358573956,1745273475688,-500.0,0.00044931,7]
[358573957,1745273475698,-580.93233531,0.00044931,7]
[358573958,1745273475707,-1023.25,0.00044931,7]
[358573959,1745273475716,-500.0,0.00044931,7]
[358573960,1745273475725,-500.0,0.00044931,7]
[358573961,1745273475735,-1458.87,0.00044931,7]
[358573962,1745273475745,-500.0,0.00044931,7]
[358573963,1745273475754,-500.0,0.00044931,7]
[358573964,1745273475763,-500.0,0.00044931,7]
[358573965,1745273475772,-500.0,0.00044931,7]
[358573966,1745273475782,-500.0,0.00044931,7]
[358573967,1745273475790,-500.0,0.00044931,7]
[358573968,1745273475801,-553.98322088,0.00044931,7]
[358573969,1745273475810,-500.0,0.00044931,7]
[358573970,1745273475819,-500.0,0.00044931,7]
[358573971,1745273475828,-500.0,0.00044931,7]
[358573972,1745273475837,-500.0,0.00044931,7]
[358573973,1745273475847,-500.0,0.00044931,7]
[358573974,1745273475856,-582.56549853,0.00044931,7]
[358573975,1745273475865,-500.0,0.00044931,7]
[358573976,1745273475875,-500.0,0.00044931,120]
[358573977,1745273475884,-500.0,0.00044931,7]
[358573978,1745273475893,-151.0,0.00044931,14]
[358573979,1745273475902,-151.0,0.00044931,14]
[358573980,1745273475911,-500.0,0.00044931,7]
[358573981,1745273475920,-500.0,0.00044931,7]
[358573982,1745273475929,-500.0,0.00044931,7]
[358573983,1745273475939,-291.52840553,0.00044931,7]
[358573984,1745273475947,-151.0,0.00044931,14]
[358573985,1745273475956,-529.82,0.00044931,7]
[358573986,1745273475968,-151.0,0.00044931,14]
[358573987,1745273475977,-500.0,0.00044931,7]
[358573988,1745273475986,-500.0,0.00044931,7]
[358573989,1745273475996,-500.0,0.00044931,7]
[358573990,1745273476005,-500.0,0.00044931,7]
[358573991,1745273476014,-500.0,0.00044931,7]
[358573992,1745273476023,-500.0,0.00044931,7]
[358573993,1745273476033,-500.0,0.00044931,7]
[358573994,1745273476042,-151.0,0.00044931,14]
[358573995,1745273476051,-500.0,0.00044931,7]
[358573996,1745273476061,-969.44,0.00044931,7]
[358573997,1745273476071,-500.0,0.00044931,7]
[358573998,1745273476081,-500.0,0.00044931,7]
[358573999,1745273476090,-500.0,0.00044931,7]
[358574000,1745273476099,-500.0,0.00044931,7]
[358574001,1745273476108,-500.0,0.00044931,7]
[358574002,1745273476248,-500.0,0.00044931,7]
[358574003,1745273476257,-338.12817418,0.00044931,7]
[358574004,1745273476267,-500.0,0.00044931,7]
[358574005,1745273476276,-629.509786,0.00044931,7]
[358574006,1745273476286,-690.93,0.00044931,7]
[358574007,1745273476295,-527.31498468,0.00044931,7]
[358574008,1745273476305,-500.0,0.00044931,7]
[358574009,1745273476316,-530.69327852,0.00044931,7]
[358574010,1745273476326,-500.0,0.00044931,7]
[358574011,1745273476335,-281.767434,0.00044931,14]
[358574012,1745273476345,-500.0,0.00044931,7]
[358574013,1745273476354,-500.0,0.00044931,7]
[358574014,1745273476364,-500.0,0.00044931,7]
[358574015,1745273476373,-500.0,0.00044931,7]
[358574016,1745273476385,-500.0,0.00044931,7]
[358574017,1745273476395,-593.3,0.00044931,7]
[358574018,1745273476404,-1494.4,0.00044931,7]
[358574019,1745273476413,-815.18,0.00044931,7]
[358574020,1745273476423,-500.0,0.00044931,7]
[358574021,1745273476434,-2474.26,0.00044931,7]
[358574022,1745273476444,-500.0,0.00044931,7]
[358574023,1745273476453,-500.0,0.00044931,7]
[358574024,1745273476464,-847.59,0.00044931,7]